fUST/lending_fUST_20250926
["ID","MTS","AMOUNT","RATE_DAILY","PERIOD"]
[387827086,1758897045528,-206.817215,0.00035,7]
[387827087,1758897045537,-151.0,0.00035,7]
[387827088,1758897045546,-301.822138,0.00035,7]
[387827089,1758897045555,-285.83212723,0.00035,2]
[387827090,1758897045564,-301.822138,0.00035,7]
[387827091,1758897045574,-301.822138,0.00035,7]
[387827092,1758897045583,-151.0,0.00035,7]
[387827093,1758897045593,-325.194137,0.00035,7]
[387827094,1758897045603,-301.822138,0.00035,7]
[387827095,1758897045612,-325.194137,0.00035,7]
[387827096,1758897045621,-325.194137,0.00035,7]
[387827097,1758897045631,-325.194137,0.00035,7]
[387827098,1758897045642,-151.0,0.00035,7]
[387827099,1758897045651,-151.0,0.00035,7]
[387827100,1758897045660,-151.0,0.00035,7]
[387827101,1758897045669,-151.0,0.00035,7]
[387827102,1758897045679,-151.0,0.00035,7]
[387827103,1758897045688,-151.0,0.00035,7]
[387827104,1758897045697,-301.053439,0.00035,7]
[387827105,1758897045708,-301.053439,0.00035,7]
[387827106,1758897045717,-301.053439,0.00035,7]
[387827107,1758897045727,-301.053439,0.00035,7]
[387827108,1758897045736,-151.0,0.00035,7]
[387827109,1758897045746,-151.0,0.00035,7]
[387827110,1758897045755,-151.0,0.00035,7]
[387827111,1758897045764,-151.0,0.00035,7]
[387827112,1758897045774,-151.0,0.00035,7]
[387827113,1758897045784,-151.0,0.00035,7]
[387827114,1758897045793,-151.0,0.00035,7]
[387827117,1758897045803,-151.0,0.00035,7]
[387827120,1758897045812,-151.0,0.00035,7]
[387827122,1758897045821,-151.0,0.00035,7]
[387827124,1758897045831,-151.163466,0.00035,7]
[387827126,1758897045840,-151.0,0.00035,7]
[387827128,1758897045850,-8315.12947195,0.00035271,2]
[387827130,1758897045859,-155.688121,0.00035275,7]
[387827132,1758897045870,-151.0,0.00035275,7]
[387827134,1758897045880,-151.0,0.00035275,7]
[387827136,1758897045889,-151.0,0.00035275,7]
[387827138,1758897045899,-201.526042,0.00035275,7]
[387827140,1758897045909,-151.0,0.00035275,7]
[387827142,1758897045919,-500.0,0.00035342,120]
[387827143,1758897045928,-500.0,0.0003549,30]
[387827144,1758897045937,-500.0,0.00035522,5]
[387827145,1758897045947,-506.0676098,0.00035522,5]
[387827146,1758897045956,-151.0,0.000356,17]
[387827147,1758897045968,-151.0,0.00035784,30]
[387827148,1758897045977,-151.0,0.00035784,30]
[387827149,1758897045986,-151.0,0.00035784,30]
[387827150,1758897045995,-151.0,0.00035784,30]
[387827151,1758897046004,-151.0,0.00035784,30]
[387827152,1758897046015,-152.370541,0.00035784,14]
[387827153,1758897046024,-151.0,0.00035784,30]
[387827154,1758897046034,-151.0,0.00035784,30]
[387827155,1758897046043,-162.534835,0.00035784,30]
[387827156,1758897046052,-151.0,0.00035784,30]
[387827157,1758897046061,-151.0,0.00035784,30]
[387827158,1758897046071,-151.0,0.00035784,30]
[387827159,1758897046080,-224.22831,0.00035784,30]
[387827160,1758897046089,-151.0,0.00035784,30]
[387827161,1758897046098,-1732.5810574,0.000358,3]
[387827162,1758897046107,-2161.6618638,0.00035814,2]
[387827163,1758897046116,-500.0,0.00035822,30]
[387827164,1758897046125,-179.73040439,0.00035822,15]
[387827165,1758897046135,-100000.0,0.00036,20]
[387827166,1758897046144,-100000.0,0.00036,25]
[387827167,1758897046153,-151.0,0.00036,30]
[387827168,1758897046162,-151.0,0.00036,30]
[387827169,1758897046171,-152.262886,0.00036,30]
[387827170,1758897046180,-151.0,0.00036,30]
[387827171,1758897046189,-151.0,0.00036,30]
[387827172,1758897046198,-151.0,0.00036,30]
[387827173,1758897046211,-151.0,0.00036,30]
[387827174,1758897046220,-151.0,0.00036,30]
[387827175,1758897046230,-151.0,0.00036,30]
[387827176,1758897046239,-151.0,0.00036,30]
[387827177,1758897046248,-151.0,0.00036,30]
[387827178,1758897046257,-151.0,0.00036,30]
[387827179,1758897046267,-151.0,0.00036,30]
[387827180,1758897046276,-151.0,0.00036,30]
[387827181,1758897046285,-151.0,0.00036,30]
[387827182,1758897046295,-151.0,0.00036,30]
[387827183,1758897046304,-249.784963,0.00036,30]
[387827184,1758897046314,-151.0,0.00036,30]
[387827185,1758897046323,-151.0,0.00036,30]
[387827186,1758897046333,-151.0,0.00036,30]
[387827187,1758897046342,-154.545213,0.00036,30]
[387827188,1758897046352,-252.0,0.00036,30]
[387827189,1758897046362,-151.0,0.00036,30]
[387827190,1758897046372,-151.0,0.00036,30]
[387827191,1758897046382,-192.968453,0.00036,30]
[387827192,1758897046392,-151.0,0.00036,30]
[387827193,1758897046402,-151.0,0.00036,30]
[387827194,1758897046411,-151.0,0.00036,30]
[387827195,1758897046421,-165.322919,0.00036,30]
[387827196,1758897046433,-151.0,0.00036,30]
[387827197,1758897046444,-151.0,0.00036,30]
[387827198,1758897046453,-151.0,0.00036,30]
[387827199,1758897046466,-151.0,0.00036,30]
[387827200,1758897046476,-160.184184,0.00036,30]
[387827201,1758897046486,-151.0,0.00036,15]
[387827202,1758897046495,-151.0,0.00036,15]
[387827203,1758897046504,-151.0,0.00036,30]
[387827204,1758897046515,-151.0,0.00036,30]
[387827205,1758897046525,-151.0,0.00036,30]
[387827206,1758897046603,-151.0,0.00036,30]
[387827207,1758897046613,-151.0,0.00036,30]
[387827208,1758897046623,-151.0,0.00036,30]
[387827209,1758897046632,-151.0,0.00036,30]
[387827210,1758897046642,-151.0,0.00036,30]
[387827211,1758897046651,-151.0,0.00036,30]
[387827212,1758897046660,-151.0,0.00036,30]
[387827213,1758897046670,-151.0,0.00036,30]
[387827214,1758897046679,-151.941848,0.00036,30]
[387827215,1758897046688,-151.0,0.00036,30]
[387827216,1758897046698,-151.0,0.00036,30]
[387827217,1758897046708,-301.822138,0.00036,30]
[387827218,1758897046723,-301.822138,0.00036,30]
[387827219,1758897046733,-301.822138,0.00036,30]
[387827220,1758897046743,-151.0,0.00036,30]
[387827221,1758897046752,-325.194137,0.00036,30]
[387827222,1758897046762,-301.822138,0.00036,30]
[387827223,1758897046772,-325.194137,0.00036,30]
[387827224,1758897046781,-325.194137,0.00036,30]
[387827225,1758897046791,-325.194137,0.00036,30]
[387827226,1758897046800,-151.0,0.00036,30]
[387827227,1758897046809,-151.0,0.00036,30]
[387827228,1758897046819,-151.0,0.00036,30]
[387827229,1758897046828,-151.0,0.00036,30]
[387827230,1758897046838,-151.0,0.00036,30]
[387827231,1758897046848,-301.053439,0.00036,30]
[387827232,1758897046858,-301.053439,0.00036,30]
[387827233,1758897046868,-301.053439,0.00036,30]
[387827234,1758897046877,-301.053439,0.00036,30]
[387827235,1758897046888,-151.0,0.00036,30]
[387827236,1758897046898,-151.0,0.00036,30]
[387827237,1758897046908,-151.0,0.00036,30]
[387827238,1758897046918,-151.0,0.00036,30]
[387827239,1758897046927,-225.820585,0.00036,30]
[387827240,1758897046937,-151.0,0.00036,30]
[387827241,1758897046947,-151.0,0.00036,30]
[387827242,1758897046956,-151.0,0.00036,30]
[387827243,1758897046970,-151.0,0.00036,30]
[387827244,1758897046980,-151.0,0.00036,30]
[387827245,1758897046989,-151.0,0.00036,30]
[387827246,1758897046998,-1000.0,0.0003607,5]
[387827247,1758897047007,-277.54109352,0.00036091,26]
[387827248,1758897047017,-500.0,0.00036164,120]
[387827249,1758897047026,-1500.0,0.00036618,5]
[387827250,1758897047036,-183.38242098,0.00036689,2]
[387827251,1758897047045,-482.3319578,0.00036719,2]
[387827252,1758897047055,-200000.0,0.00036789,120]
[387827253,1758897047064,-191818.28808837,0.00036789,60]
[387827254,1758897047106,-491.82516212,0.00036789,60]
[387827255,1758897047419,-151.0,0.00035,7]
[387827256,1758897047428,-151.0,0.00036,30]
[387827257,1758897047441,-178.0,0.00036789,60]
[387827258,1758897047456,-577.03999998,0.00036789,60]
[387827265,1758897048071,-904.22,0.00036789,60]
[387827267,1758897059172,-5000.0,0.00024953,2]
[387827268,1758897076857,5000.0,0.00024953,2]
[387827269,1758897109370,-5000.0,0.00024953,13]
[387827270,1758897126112,-152.85950703,0.000199,2]
[387827271,1758897129428,-452.87096603,0.000199,2]
[387827272,1758897129460,-605.73047277,0.00021372,2]
[387827273,1758897129596,-605.73047277,0.00022844,2]
[387827274,1758897129627,-605.73047277,0.00024316,2]
[387827275,1758897129656,-459.88523132,0.00024953,2]
[387827276,1758897129766,-4540.11476868,0.00024953,2]
[387827278,1758897159474,-5000.0,0.00024953,13]
[387827279,1758897172761,5000.0,0.00024953,2]
[387827280,1758897199555,-5000.0,0.00024953,13]
[387827306,1758897229626,-5000.0,0.00024953,13]
[387827338,1758897259724,-5000.0,0.00024953,13]
[387827344,1758897272835,0.01,0.00024953,2]
[387827345,1758897272858,4999.99,0.00024953,2]
[387827350,1758897300012,-464.39336266,0.000199,2]
[387827351,1758897300042,-464.39336245,0.00021372,2]
[387827352,1758897300072,-464.39336245,0.00024316,2]
[387827353,1758897300100,-2213.64982488,0.00024953,13]
[387827354,1758897300473,-2786.35017512,0.00024953,13]
[387827355,1758897330112,-5000.0,0.00024953,2]
[387827362,1758897350034,-5000.0,0.00024953,2]
[387827363,1758897370161,-5000.0,0.00024953,13]
[387827374,1758897400744,-5000.0,0.00024953,13]
[387827375,1758897416443,5000.0,0.00024953,2]
[387827377,1758897450437,-5000.0,0.00024953,13]
[387827378,1758897470489,-371.51468996,0.000199,2]
[387827379,1758897470520,-371.51468996,0.00022844,2]
[387827380,1758897470553,-371.51468996,0.00024316,2]
[387827381,1758897470591,-2770.92186024,0.00024953,2]
[387827382,1758897470705,-2229.07813976,0.00024953,2]
[387827384,1758897488863,5000.0,0.00024953,2]
[387827385,1758897513359,541.85372048,0.00024953,2]
[387827386,1758897513383,4458.14627952,0.00024953,2]
[387827387,1758897536661,5000.0,0.00024953,2]
[387827389,1758897560930,-5000.0,0.00024953,13]
[387827390,1758897590933,-5000.0,0.00024953,13]
[387827393,1758897807515,2620.33795327,0.00031774,120]
[387827394,1758897811062,4326.50690622,0.0002011,13]
[387827395,1758897821465,500.089,0.00028767,120]
[387827396,1758897831837,-435.54677958,0.000199,2]
[387827397,1758897831869,-435.54677947,0.00021372,2]
[387827398,1758897831901,-435.54677947,0.00022844,2]
[387827399,1758897831931,-435.54677947,0.00024316,2]
[387827400,1758897832185,-3339.46546929,0.00024853,2]
[387827401,1758897832364,-3321.07906142,0.00024853,2]
[387827515,1758898232553,-263.6985454,0.000199,2]
[387827516,1758898233065,-152.0,0.00024953,2]
[387827517,1758898233174,-263.6985454,0.00027014,6]
[387827518,1758898233185,-772.0,0.00027151,2]
[387827519,1758898233195,-1200.0,0.00027152,2]
[387827520,1758898233205,-300.0,0.00027152,2]
[387827521,1758898233215,-300.0,0.00027152,2]
[387827522,1758898233224,-300.0,0.00027152,2]
[387827523,1758898233234,-1814.03262089,0.00027153,2]
[387827524,1758898233247,-255.57243791,0.00027153,2]
[387827525,1758898233257,-983.96121195,0.00027153,2]
[387827526,1758898233268,-10046.19163911,0.00027153,2]
[387827527,1758898233280,-9911.90000001,0.00027153,2]
[387827528,1758898233300,-26988.34209013,0.00027153,2]
[387827529,1758898233310,-176.02571587,0.00027153,2]
[387827530,1758898233319,-500.0,0.00027153,2]
[387827531,1758898233329,-500.0,0.00027153,2]
[387827532,1758898233339,-257.87431632,0.00027153,2]
[387827533,1758898233348,-500.0,0.00027153,2]
[387827534,1758898233358,-160.815614,0.00027153,2]
[387827535,1758898233368,-433.42721478,0.00027153,2]
[387827536,1758898233378,-900.86895219,0.00027159,2]
[387827537,1758898233388,-183.185783,0.00029181,60]
[387827538,1758898233398,-309.830274,0.00029274,2]
[387827539,1758898233407,-183.0,0.0002935,2]
[387827540,1758898233420,-900.86895213,0.00031367,2]
[387827541,1758898233431,-160.0,0.00031504,2]
[387827542,1758898233441,-233.71402077,0.00031512,2]
[387827543,1758898233452,-174.657,0.00031523,29]
[387827544,1758898233461,-248.38,0.00031624,3]
[387827545,1758898233471,-745.18,0.00031624,3]
[387827546,1758898233481,-106613.4447781,0.00031634,2]
[387827547,1758898233491,-480.0,0.00031732,120]
[387827548,1758898233501,-287.1059272,0.00031774,14]
[387827549,1758898233510,-800.0,0.00032677,2]
[387827550,1758898233520,-500.0,0.00032876,120]
[387827551,1758898233530,-521.728579,0.00032877,2]
[387827552,1758898233540,-192.76,0.00032894,3]
[387827553,1758898233550,-496.76,0.00032994,3]
[387827554,1758898233559,-500.0,0.00033698,120]
[387827555,1758898233569,-263.6985454,0.00034128,22]
[387827556,1758898233579,-56898.93893641,0.00035,10]
[387827557,1758898233591,-1178.92350076,0.00035,10]
[387827666,1758898238520,-500.0,0.00027152,2]
[387827667,1758898238530,-230.51202142,0.00027152,2]
[387827668,1758898238539,-500.0,0.00027152,2]
[387827669,1758898238548,-955.22253843,0.00035,10]
[387827670,1758898238559,-1025.92947994,0.00035,10]
[387827671,1758898238570,-483.2568244,0.00035,10]
[387827672,1758898238730,-39457.72872006,0.00035,10]
[387827673,1758898238739,-200.0,0.00035,10]
[387827674,1758898238749,-100000.0,0.000355,10]
[387827675,1758898238758,-500.0,0.000355,10]
[387827676,1758898238767,-900.86895213,0.00035574,2]
[387827677,1758898238780,-500.0,0.00035774,10]
[387827678,1758898238789,-500.0,0.00035885,30]
[387827679,1758898238798,-100000.0,0.00036,10]
[387827680,1758898238808,-151.0,0.00036617,5]
[387827681,1758898238819,-151.0,0.00036617,5]
[387827682,1758898238828,-151.0,0.00036617,5]
[387827683,1758898238837,-343.65648943,0.00036617,5]
[387827684,1758898238847,-500.0,0.00036617,5]
[387827685,1758898238857,-500.0,0.00036617,5]
[387827686,1758898238867,-500.0,0.00036617,5]
[387827687,1758898238876,-500.0,0.00036617,5]
[387827688,1758898238886,-500.0,0.00036617,5]
[387827689,1758898238895,-500.0,0.00036617,5]
[387827690,1758898238903,-500.0,0.00036617,5]
[387827691,1758898238912,-500.0,0.00036617,5]
[387827692,1758898238924,-500.0,0.00036617,5]
[387827693,1758898238933,-500.0,0.00036617,5]
[387827694,1758898238942,-500.0,0.00036617,5]
[387827695,1758898238951,-151.0,0.00036617,5]
[387827696,1758898238960,-500.0,0.00036617,5]
[387827697,1758898238970,-151.0,0.00036617,5]
[387827698,1758898238979,-151.0,0.00036617,5]
[387827699,1758898238988,-233.14270402,0.00036617,5]
[387827700,1758898238998,-151.0,0.00036617,5]
[387827701,1758898239008,-152.12966294,0.00036617,5]
[387827702,1758898239017,-500.0,0.00036617,5]
[387827703,1758898239026,-500.0,0.00036617,5]
[387827704,1758898239035,-151.0,0.00036779,3]
[387827705,1758898239044,-151.0,0.00036779,3]
[387827706,1758898239053,-151.0,0.00036779,3]
[387827707,1758898239063,-151.53827853,0.00036779,3]
[387827708,1758898239072,-151.0,0.00036779,3]
[387827709,1758898239081,-151.0,0.00036779,3]
[387827710,1758898239091,-151.0,0.00036779,3]
[387827711,1758898239100,-496.77,0.00036779,3]
[387827712,1758898239109,-151.0,0.00036779,3]
[387827713,1758898239119,-151.0,0.00036779,3]
[387827714,1758898239128,-6030.62674953,0.00036789,60]
[387827715,1758898239137,-198.0,0.00036891,5]
[387827716,1758898239147,-198.0,0.00036891,5]
[387827717,1758898239156,-196.08091635,0.00036891,5]
[387827718,1758898239165,-151.0,0.00036891,5]
[387827719,1758898239176,-151.0,0.00036891,5]
[387827720,1758898239185,-151.0,0.00037053,3]
[387827721,1758898239195,-151.0,0.00037053,3]
[387827722,1758898239203,-151.0,0.00037053,3]
[387827723,1758898239212,-246.56925732,0.00037053,3]
[387827724,1758898239222,-158.6496239,0.00037053,3]
[387827725,1758898239231,-151.0,0.00037053,3]
[387827726,1758898239240,-151.0,0.00037053,3]
[387827727,1758898239249,-500.0,0.00037055,30]
[387827728,1758898239260,-198.0,0.00037165,5]
[387827729,1758898239270,-151.0,0.00037165,5]
[387827730,1758898239279,-500.0,0.00037243,5]
[387827731,1758898239288,-151.0,0.00037327,3]
[387827732,1758898239297,-151.0,0.00037327,3]
[387827733,1758898239306,-151.0,0.00037327,3]
[387827734,1758898239315,-151.0,0.00037327,3]
[387827735,1758898239324,-247.61315356,0.00037327,3]
[387827736,1758898239333,-151.0,0.00037439,5]
[387827737,1758898239342,-168.0,0.00037474,2]
[387827738,1758898239351,-168.0,0.00037485,2]
[387827739,1758898239360,-11187.5431409,0.00037513,2]
[387827740,1758898239369,-198.0,0.00037601,3]
[387827741,1758898239379,-222.4412413,0.00037601,3]
[387827742,1758898239387,-198.0,0.00037601,3]
[387827743,1758898239397,-151.0,0.00037601,3]
[387827744,1758898239406,-245.0,0.00037713,5]
[387827745,1758898239415,-1000.0,0.00037791,5]
[387827746,1758898239427,-168.0,0.00037847,2]
[387827747,1758898239437,-151.0,0.00037875,3]
[387827748,1758898239446,-190.28124787,0.000379,2]
[387827749,1758898239455,-4408.26025786,0.000379,2]
[387827750,1758898239464,-100000.0,0.00038,14]
[387827751,1758898239474,-100000.0,0.00038,26]
[387827752,1758898239483,-100000.0,0.00038,26]
[387827753,1758898239492,-153.926856,0.00038,30]
[387827754,1758898239502,-195.116482,0.00038,30]
[387827755,1758898239512,-195.116482,0.00038,30]
[387827756,1758898239521,-195.116482,0.00038,30]
[387827757,1758898239531,-195.116482,0.00038,30]
[387827758,1758898239540,-181.093283,0.00038,30]
[387827759,1758898239549,-151.0,0.00038,30]
[387827760,1758898239558,-181.093283,0.00038,30]
[387827761,1758898239568,-223.369718,0.00038,30]
[387827762,1758898239577,-181.093283,0.00038,30]
[387827763,1758898239586,-151.0,0.00038,30]
[387827764,1758898239595,-181.093283,0.00038,30]
[387827765,1758898239605,-151.0,0.00038,30]
[387827766,1758898239614,-180.632063,0.00038,30]
[387827767,1758898239623,-180.632063,0.00038,30]
[387827768,1758898239632,-180.632063,0.00038,30]
[387827769,1758898239642,-180.632063,0.00038,30]
[387827770,1758898239651,-151.0,0.00038,30]
[387827771,1758898239661,-151.0,0.00038,30]
[387827772,1758898239669,-151.0,0.00038,30]
[387827773,1758898239681,-151.0,0.00038,30]
[387827774,1758898239690,-151.0,0.00038,30]
[387827775,1758898239699,-151.0,0.00038,30]
[387827776,1758898239708,-588.5325414,0.00038129,30]
[387827777,1758898239717,-508.1779137,0.00038129,30]
[387827778,1758898239726,-993.54,0.00038149,3]
[387827779,1758898239735,-168.0,0.00038172,2]
[387827780,1758898239745,-520.48016904,0.00038196,120]
[387827781,1758898239755,-100000.0,0.000383,20]
[387827782,1758898239764,-387.62,0.000383,14]
[387827783,1758898239775,-1500.0,0.00038339,5]
[387827784,1758898239784,-521.728579,0.00038356,2]
[387827785,1758898239794,-100000.0,0.000385,26]
[387827786,1758898239803,-151.0,0.000385,12]
[387827787,1758898239813,-195.116482,0.000385,120]
[387827788,1758898239824,-195.116482,0.000385,120]
[387827789,1758898239833,-195.116482,0.000385,120]
[387827790,1758898239843,-195.116482,0.000385,120]
[387827791,1758898239855,-151.0,0.000385,120]
[387827792,1758898239867,-181.093283,0.000385,120]
[387827793,1758898239877,-181.093283,0.000385,120]
[387827794,1758898239886,-181.093283,0.000385,120]
[387827795,1758898239895,-258.2657,0.000385,120]
[387827796,1758898239905,-181.093283,0.000385,120]
[387827797,1758898239918,-151.0,0.000385,120]
[387827798,1758898239929,-180.632063,0.000385,120]
[387827799,1758898239939,-180.632063,0.000385,120]
[387827800,1758898239948,-180.632063,0.000385,120]
[387827801,1758898239958,-180.632063,0.000385,120]
[387827802,1758898239967,-151.0,0.000385,120]
[387827803,1758898239977,-151.0,0.000385,30]
[387827804,1758898239986,-151.0,0.000385,120]
[387827805,1758898239996,-151.0,0.000385,120]
[387827806,1758898240005,-151.0,0.000385,120]
[387827807,1758898240015,-168.0,0.00038707,2]
[387827808,1758898240024,-893.25918198,0.00038793,30]
[387827809,1758898240034,-2496.2782927,0.00038796,2]
[387827810,1758898240043,-500.0,0.000388,5]
[387827811,1758898240053,-151.0,0.000388,120]
[387827813,1758898240062,-151.0,0.000388,120]
[387827815,1758898240072,-151.0,0.000388,120]
[387827816,1758898240081,-185.482885,0.000388,120]
[387827817,1758898240090,-151.0,0.000388,120]
[387827818,1758898240099,-151.0,0.000388,120]
[387827819,1758898240109,-177.683661,0.000388,120]
[387827820,1758898240118,-151.0,0.000388,120]
[387827821,1758898240127,-151.0,0.000388,120]
[387827822,1758898240136,-210.476219,0.000388,120]
[387827823,1758898240145,-151.0,0.000388,120]
[387827824,1758898240155,-151.0,0.000388,120]
[387827825,1758898240234,-151.0,0.000388,120]
[387827826,1758898240244,-2000.0,0.00038887,5]
[387827827,1758898240254,-500.0,0.00038933,5]
[387827828,1758898240263,-200.0,0.00038952,120]
[387827829,1758898240273,-100000.0,0.00039,14]
[387827830,1758898240283,-100000.0,0.00039,26]
[387827831,1758898240292,-151.0,0.00039,10]
[387827832,1758898240302,-151.0,0.00039,120]
[387827833,1758898240311,-151.0,0.00039,120]
[387827834,1758898240321,-151.0,0.00039,120]
[387827835,1758898240330,-151.0,0.00039,120]
[387827836,1758898240339,-151.0,0.00039,120]
[387827837,1758898240349,-151.0,0.00039,120]
[387827838,1758898240358,-158.077589,0.00039,120]
[387827839,1758898240369,-151.0,0.00039,120]
[387827840,1758898240378,-154.189102,0.00039,120]
[387827841,1758898240387,-151.0,0.00039,120]
[387827842,1758898240397,-151.0,0.00039,120]
[387827843,1758898240406,-233.71402077,0.00039,120]
[387827844,1758898240415,-151.0,0.00039,120]
[387827845,1758898240427,-227.605544,0.00039,120]
[387827846,1758898240437,-151.0,0.00039,15]
[387827847,1758898240446,-151.0,0.00039,15]
[387827848,1758898240455,-152.67127,0.00039,120]
[387827849,1758898240465,-151.0,0.00039,120]
[387827850,1758898240474,-151.0,0.00039,120]
[387827851,1758898240483,-158.146366,0.00039,120]
[387827852,1758898240492,-151.0,0.00039,120]
[387827853,1758898240501,-151.0,0.00039,120]
[387827854,1758898240510,-151.0,0.0003901,120]
[387827855,1758898240520,-151.0,0.0003901,120]
[387827856,1758898240529,-151.0,0.0003901,120]
[387827857,1758898240538,-151.0,0.0003901,120]
[387827858,1758898240547,-100000.0,0.000393,20]
[387827859,1758898240556,-151.0,0.000393,120]
[387827860,1758898240571,-151.0,0.000393,120]
[387827861,1758898240581,-151.0,0.000393,120]
[387827862,1758898240590,-151.0,0.000393,120]
[387827863,1758898240599,-195.116482,0.000393,120]
[387827864,1758898240608,-195.116482,0.000393,120]
[387827865,1758898240618,-195.116482,0.000393,120]
[387827866,1758898240627,-195.116482,0.000393,120]
[387827867,1758898240637,-212.191347,0.000393,120]
[387827868,1758898240646,-181.093283,0.000393,120]
[387827869,1758898240655,-181.093283,0.000393,120]
[387827870,1758898240664,-181.093283,0.000393,120]
[387827871,1758898240674,-181.093283,0.000393,120]
[387827872,1758898240684,-151.0,0.000393,120]
[387827873,1758898240694,-180.632063,0.000393,120]
[387827874,1758898240703,-180.632063,0.000393,120]
[387827875,1758898240713,-180.632063,0.000393,120]
[387827876,1758898240722,-180.632063,0.000393,120]
[387827877,1758898240732,-151.0,0.000393,120]
[387827878,1758898240750,-151.0,0.000393,30]
[387827879,1758898240759,-151.0,0.000393,120]
[387827880,1758898240769,-162.854866,0.000393,120]
[387827881,1758898240782,-151.0,0.000393,120]
[387827882,1758898240792,-520.48016904,0.00039325,120]
[387827883,1758898240801,-1000.0,0.00039348,5]
[387827884,1758898240810,-160.57761607,0.000394,120]
[387827885,1758898240820,-190.28124786,0.000394,2]
[387827886,1758898240829,-2500.0,0.00039435,5]
[387827887,1758898240838,-905.3399527,0.00039499,3]
[387827888,1758898240847,-100000.0,0.000395,26]
[387827889,1758898240857,-100000.0,0.000395,20]
[387827890,1758898240867,-155.168099,0.000395,120]
[387827891,1758898240877,-151.0,0.000395,120]
[387827892,1758898240886,-151.0,0.000395,120]
[387827893,1758898240895,-151.0,0.000395,120]
[387827894,1758898240904,-157.85467316,0.000395,120]
[387827895,1758898240914,-151.0,0.000395,120]
[387827896,1758898240925,-151.0,0.000395,120]
[387827897,1758898240934,-151.0,0.000395,120]
[387827898,1758898240943,-151.0,0.000395,15]
[387827899,1758898240952,-151.0,0.000395,120]
[387827900,1758898240960,-151.0,0.000395,120]
[387827901,1758898240970,-151.0,0.000395,120]
[387827902,1758898240979,-151.0,0.000395,120]
[387827903,1758898240988,-151.0,0.000395,120]
[387827904,1758898240997,-151.0,0.000395,120]
[387827905,1758898241006,-168.0,0.00039602,2]
[387827906,1758898241015,-900.86895213,0.00039782,2]
[387827907,1758898241024,-5872.71742515,0.000399,3]
[387827908,1758898241033,-100000.0,0.000399,20]
[387827909,1758898241042,-4408.26025786,0.000399,2]
[387827910,1758898241051,-151.0,0.000399,120]
[387827911,1758898241060,-151.0,0.000399,120]
[387827912,1758898241069,-286.853685,0.000399,120]
[387827913,1758898241079,-195.116482,0.000399,120]
[387827914,1758898241087,-195.116482,0.000399,120]
[387827915,1758898241096,-195.116482,0.000399,120]
[387827916,1758898241105,-195.116482,0.000399,120]
[387827917,1758898241114,-181.093283,0.000399,120]